Cogmind - Beta 13 @@@ ROGUE MODE // 2024.03.12 @ 18:30:05 Player: Baxter Result: Destroyed by G-47 Trooper with Particle Gun Performance ------------- Evolutions (0) 0 Regions Visited (2) 400 Robots Destroyed (12) 60 Value Destroyed (283) 283 Prototype IDs (0) 0 Alien Tech Used (0) 0 Bonus (0) 0 TOTAL SCORE: 743 Bonus ------- None Cogmind --------- Core Integrity 0/250 Matter 270/300 Energy 212/250 System Corruption 0% Temperature Warm (177) Movement Treading (480) Ox4 Location -10/Mines Parts ------- > --- POWER (1) -------- Ion Engine > --- PROPULSION (2) --- Light Treads Compact Wheel > --- UTILITY (2) ------ Huge Storage Unit Structural Scanner > --- WEAPON (2) ------- EM Pulse Gun Small Laser > --- INVENTORY (25) --- Ion Engine Ion Engine Light Treads Aluminum Leg Aluminum Leg Wheel Compact Wheel Medium Storage Unit Large Storage Unit Huge Storage Unit Large Matter Pod (150) High-capacity Matter Pod (200) Structural Scanner Structural Scanner Sensor Array Signal Interpreter Utility Shielding Particle Gun Grenade Launcher Mining Claw Peak State ------------ > --- POWER ------------ Ion Engine > --- PROPULSION ------- Compact Wheel Compact Wheel > --- UTILITY ---------- Huge Storage Unit Structural Scanner > --- WEAPON ----------- EM Pulse Gun Small Laser > --- INVENTORY -------- Ion Engine Ion Engine Light Treads Light Treads Aluminum Leg Aluminum Leg Wheel Medium Storage Unit Large Storage Unit Huge Storage Unit Large Matter Pod High-capacity Matter Pod Structural Scanner Structural Scanner Sensor Array Signal Interpreter Utility Shielding Particle Gun Grenade Launcher Mining Claw [Rating: 9] Favorites ----------- Power Light Ion Engine Engine Light Ion Engine Propulsion Wheel Treads Light Treads Wheel Wheel Utility Huge Storage Unit Device Structural Scanner Storage Huge Storage Unit Weapon Light Assault Rifle Energy Gun Small Laser Ballistic Gun Light Assault Rifle Build | -11 -10 -10 ------- Run | Yrd Mat Min Slots Evolved . | . . . Power . | . . . Propulsion . | . . . Utility . | . . . Weapon . | . . . Parts Attached 22 | 6 13 3 Power 2 | 1 1 . Engine 2 | 1 1 . Core . | . . . Reactor . | . . . Propulsion 11 | 2 7 2 Treads 4 | 1 2 1 Leg . | . . . Wheel 7 | 1 5 1 Hover . | . . . Flight . | . . . Utility 5 | 1 4 . Device 1 | . 1 . Storage 4 | 1 3 . Processor . | . . . Hackware . | . . . Protection . | . . . Artifact . | . . . Weapon 4 | 2 1 1 Energy Gun 2 | . 1 1 Energy Cannon . | . . . Ballistic Gun 2 | 2 . . Ballistic Cannon . | . . . Launcher . | . . . Special Weapon . | . . . Impact Weapon . | . . . Slashing Weapon . | . . . Piercing Weapon . | . . . Special Melee Weapon . | . . . Unidentified Prototypes . | . . . Parts Lost 5 | . 5 . Power 1 | . 1 . Propulsion 2 | . 2 . Utility . | . . . Weapon 2 | . 2 . Highest Loss Streak 3 | . 3 . To Critical Strikes . | . . . Average Slot Usage (%) 88 | . 88 100 Engine 13 | . 13 14 Treads 2 | . 2 14 Wheel 25 | . 25 14 Device 6 | . 6 14 Storage 15 | . 15 14 Energy Gun 5 | . 5 28 Ballistic Gun 17 | . 17 . Naked Turns . | . . . Heaviest Build 166 | 11 166 . Greatest Support 20 | 20 20 . Greatest Overweight (x) 8 | . 8 . Average Overweight (x) 3 | . 4 . Largest Inventory Capacity 25 | 8 25 25 Average Capacity 22 | 7 23 25 Most Carried 21 | 7 21 21 Average Carried 11 | 4 12 20 Final Capacity 25 | 8 25 25 Final Carried 21 | 7 21 20 Class Distribution -------------------- 100% | Mutant Dominant Class ---------------- Mutant | -10/Materials Mutant | -10/Mines Resources | -11 -10 -10 ----------- Run | Yrd Mat Min Matter Collected 978 | 262 716 . Remotely . | . . . Salvage Created 416 | 98 318 . Parts 20 | 1 19 . Haulers Intercepted . | . . . Recyclers Shooed . | . . . Parts Field Recycled . | . . . Retrieved Matter . | . . . Parts Self-Destructed . | . . . Prevented . | . . . Kills | -11 -10 -10 ------- Run | Yrd Mat Min Combat Hostiles Destroyed 9 | . 9 . Guns 9 | . 9 . Classes Destroyed 5 | 1 4 . Worker 1 | . 1 . Recycler 1 | 1 . . Operator 1 | . 1 . Swarmer 3 | . 3 . Grunt 6 | . 6 . Best Kill Streak 3 | 1 3 . Combat Bots Only 3 | . 3 . Max Kills in Single Turn 1 | 1 1 . Gunslinging . | . . . Exploded . | . . . Melee . | . . . Uniques/NPCs Destroyed . | . . . Combat | -11 -10 -10 -------- Run | Yrd Mat Min Hostile Shots Fired 97 | . 78 19 Missed 27 | . 22 5 Damage Taken 837 | . 644 193 Core 261 | . 203 58 Absorbed by Shields . | . . . Core Remaining (%) 100 | 100 . . Volleys Fired 85 | 4 76 5 Largest 2 | 2 2 2 Hottest 80 | 40 60 80 Shots Fired 165 | 8 147 10 Gun 165 | 8 147 10 Cannon . | . . . Launcher . | . . . Special . | . . . Kinetic 140 | 8 132 . Thermal 20 | . 15 5 Explosive . | . . . Electromagnetic 5 | . . 5 Robot Hit Streak 8 | 2 8 6 Robot Miss Streak 6 | 3 6 2 Penetration Max . | . . . Secondary Targets . | . . . Shots Hit Robots 91 | 4 80 7 Core Hits 30 | 3 25 2 Critical Kills . | . . . Critical Parts Destroyed 2 | . 2 . Critical Strikes 2 | . 2 . Destroy 2 | . 2 . Melee Attacks . | . . . Impact . | . . . Slashing . | . . . Piercing . | . . . Sneak Attacks . | . . . Combat Hostiles . | . . . Follow-up Attacks . | . . . Damage Inflicted 966 | 46 830 90 Guns 941 | 46 805 90 Cannons . | . . . Explosions . | . . . Melee . | . . . Ramming 25 | . 25 . Kinetic 752 | 46 706 . Thermal 133 | . 99 34 Explosive . | . . . Electromagnetic 56 | . . 56 Impact . | . . . Slashing . | . . . Piercing . | . . . Highest Corruption . | . . . Average Corruption . | . . . Corruption Purged . | . . . Corruption Blocked . | . . . Overload Shots . | . . . Overflow Damage . | . . . Projectiles . | . . . Explosions . | . . . Melee . | . . . Knockbacks . | . . . Impact . | . . . Kinetic . | . . . Secondary . | . . . Self-Inflicted Damage 12 | . 12 . Shots . | . . . Rammed 1 | . 1 . Targets Rammed 1 | . 1 . Kicked . | . . . Crushed . | . . . Highest Temperature 168 | . 103 168 Average Temperature 44 | . 32 96 Received Heat Transfer 396 | . 288 108 Siege Activations . | . . . Robots Corrupted . | . . . Combat Hostiles . | . . . Parts Fried . | . . . Impact Corruptions . | . . . Robots Melted . | . . . Combat Hostiles . | . . . Parts Melted 1 | . 1 . Heat Transferred 300 | . 225 75 Parts Sabotaged . | . . . Parts Stolen . | . . . Parts Stripped . | . . . Power Chain Reactions . | . . . Alert | -11 -10 -10 ------- Run | Yrd Mat Min Peak Influence 155 | 5 155 16 Initial 16 | . 3 16 Average 56 | 1 61 16 Maximum Alert Level . | . . . Low Security (%) 100 | 100 100 100 Level 1 . | . . . Level 2 . | . . . Level 3 . | . . . Level 4 . | . . . Level 5 . | . . . High Security . | . . . Max Security . | . . . Squads Dispatched 2 | . 2 . Investigation 1 | . 1 . Extermination . | . . . Reinforcement 1 | . 1 . Assault . | . . . Garrison . | . . . Intercept . | . . . Searches Triggered . | . . . Construction Impeded . | . . . Haulers Reinforced . | . . . Active Scanning Responses . | . . . Cargo Convoy Interrupts . | . . . Stealth | -11 -10 -10 --------- Run | Yrd Mat Min Distress Signals 2 | . 2 . Communications Jammed . | . . . Distress Signals . | . . . Times Spotted 28 | . 26 2 Peak Tracking Total 4 | . 4 2 Tactical Retreats 2 | . 2 . Traps | -11 -10 -10 ------- Run | Yrd Mat Min Traps Triggered 1 | . 1 . Indirectly . | . . . Trap Hack Attempts . | . . . Triggered . | . . . Disarmed . | . . . Reprogrammed . | . . . Reused . | . . . Traps Extracted . | . . . Installed . | . . . Triggered . | . . . Machines | -11 -10 -10 ---------- Run | Yrd Mat Min Machines Disabled . | . . . Max in Single Turn . | . . . Machines Repaired . | . . . Machines Dismantled . | . . . Machines Sabotaged . | . . . Overloaded Fab Kills . | . . . Hacking | -11 -10 -10 --------- Run | Yrd Mat Min Machines Accessed 5 | . 5 . Terminals 5 | . 5 . Fabricators . | . . . Repair Stations . | . . . Recycling Units . | . . . Scanalyzers . | . . . Garrison Access . | . . . Total Hacks 14 | . 14 . Successful 8 | . 8 . Failed 5 | . 5 . Catastrophic . | . . . Database Lockouts 1 | . 1 . Manual 14 | . 14 . Terminals 14 | . 14 . Fabricators . | . . . Repair Stations . | . . . Recycling Units . | . . . Scanalyzers . | . . . Garrison Access . | . . . Terminal Hacks 3 | . 3 . Robot Analysis 1 | . 1 . Branch Access Points 1 | . 1 . Recall Investigation 1 | . 1 . Fabricator Hacks . | . . . Repair Station Hacks . | . . . Recycling Unit Hacks . | . . . Scanalyzer . | . . . Garrison Access Hacks . | . . . Unauthorized Hacks 5 | . 5 . Terminals 5 | . 5 . Botnet 5 | . 5 . Fabricators . | . . . Repair Stations . | . . . Recycling Units . | . . . Scanalyzers . | . . . Garrison Access . | . . . Data Cores Recovered . | . . . Used . | . . . Hacking Detections 5 | . 5 . Full Trace Events 1 | . 1 . Feedback Events . | . . . Feedback Blocked . | . . . Robot Schematics Acquired . | . . . Robots Built . | . . . Authchips . | . . . Time . | . . . Total Robot Build Rating . | . . . Part Schematics Acquired . | . . . Parts Built . | . . . Authchips . | . . . Time . | . . . Total Part Build Rating . | . . . Parts Repaired . | . . . Time . | . . . Parts Recycled . | . . . Recycled Matter . | . . . Retrieved Matter . | . . . Retrieved Components . | . . . Parts Scanalyzed . | . . . Part Schematics Acquired . | . . . Parts Damaged . | . . . Bothacking | -11 -10 -10 ------------ Run | Yrd Mat Min Used RIF Installer . | . . . Robots Hacked . | . . . Non-combat . | . . . Combat . | . . . Robot Hacks Applied . | . . . Relay Couplers Released . | . . . Fabnet Peak Effective % . | . . . Robots Rewired . | . . . Allies Hacked . | . . . Hacks Repelled . | . . . Allies | -11 -10 -10 -------- Run | Yrd Mat Min Total Allies . | . . . Largest Group . | . . . Highest-Rated Group . | . . . Highest-Rated Ally . | . . . Total Orders . | . . . Ally Attacks . | . . . Total Damage . | . . . Kills . | . . . Allies Corrupted . | . . . Allies Melted . | . . . Intel | -11 -10 -10 ------- Run | Yrd Mat Min Robot Analysis Total 1 | . 1 . Derelict Logs Recovered . | . . . Drone Launches . | . . . Drone Recoveries . | . . . Exploration | -11 -10 -10 ------------- Run | Yrd Mat Min Turns Passed 1618 | 120 1480 18 Spaces Moved 834 | 62 772 . Core 1 | 1 . . Treads 109 | 56 53 . Legs . | . . . Wheels 724 | 5 719 . Hover . | . . . Flight . | . . . Fastest Speed 50 | 50 140 . Average Speed 154 | 151 155 . Slowest Speed 200 | 160 200 . Overloaded Moves . | . . . Propulsion Burnouts . | . . . Robots Hopped . | . . . Cave-ins Triggered . | . . . Exploration Rate (%) 34 | 5 95 4 Regions Visited 2 Branch Regions 1 Pre-discovered Areas . | . . . Known Exits Taken 1 | . 1 . Unknown Exits Taken 1 | 1 . . Scrap Searched . | . . . Spaces Dug . | . . . Terrain Destroyed . | . . . Melee . | . . . Projectile . | . . . AOE . | . . . Terrain Rammed . | . . . Walls Destroyed . | . . . Machines Disabled . | . . . Actions | -11 -10 -10 --------- Run | Yrd Mat Min Total 1004 | 78 918 8 Wait 38 | . 38 . Move 832 | 61 771 . Hop . | . . . Pick Up 24 | 7 17 . Fast Attach 8 | 6 2 . Attach 6 | . 5 1 Detach . | . . . Swap 8 | . 6 2 Drop 2 | . 2 . Fire 85 | 4 76 5 Melee . | . . . Ram 1 | . 1 . Kick . | . . . Crush . | . . . Escape Stasis . | . . . Rewire . | . . . Trap . | . . . Miscellaneous . | . . . Route ------- -11/Scrapyard -10/Materials (discovered 5 exits: [*Mat x3] / *Min / [Sub]) -10/Mines History --------- Turn | Location | Event 8 | -11/Scrapyard | Discovered new exit (range 15) 121 | -11/Scrapyard | Entered Materials 302 | -10/Materials | Discovered new exit (range 16) 305 | -10/Materials | Build established: Mutant 873 | -10/Materials | Discovered new exit (range 8) 978 | -10/Materials | Core integrity fell below 50% 1088 | -10/Materials | Lost 3 parts (1p1n1w) 1090 | -10/Materials | Core integrity fell below 20% 1202 | -10/Materials | Discovered new exit (range 5) 1229 | -10/Materials | Central database locked down 1229 | -10/Materials | Identified exit to Mines 1446 | -10/Materials | Discovered new exit (range 13) 1601 | -10/Materials | Entered Mines 1619 | -10/Mines | Destroyed by G-47 Trooper with Particle Gun Last Messages --------------- Terminal linked with 4 systems. Awaiting botnet instructions. 01308_ K-01 Serf cleans the Pressure Siphon. 01314_ K-01 Serf cleans the Terminal. 01314_ K-01 Serf cleans the Pressure Siphon. 01317_ K-01 Serf cleans the Terminal. 01317_ K-01 Serf cleans the Pressure Siphon. 01325_ K-01 Serf cleans the Terminal. 01334_ K-01 Serf cleans the Pressure Siphon. 01348_ Acquired Signal Interpreter. 01386_ Acquired Sensor Array. 01400_ K-01 Serf cleans the Terminal. 01408_ Acquired 10 matter. 01408_ K-01 Serf cleans the Terminal. 01446_ EXIT=FOUND 01511_ Acquired Structural Scanner. LOCATION=MINES GOAL=ESCAPE 01617_ Seismic Survey Station disabled. Map ----- +----------------------------------------------------+ | | | | | | | | | | | | | | | | | | | | | | | | | | | | | | | | | | | | | | | ?????????????????????????????????????????????????? | | ?????????????????????????????????????????????????? | | ??????????????????################???????????????? | | ??????????????????################???????????????? | | ????????????????#### g ##???????????????? | | ????????????????#### g ##???????????????? | | ?????????? @ "" ##???????????????? | | ????????????????#### """ ????????????? | | ????????????????#### """ ## ?????????????? | | ??????????????????## ## ??????????????? | | ??????????????????################???????????????? | | ??????????????????################???????????????? | | ?????????????????????????????????????????????????? | | ?????????????????????????????????????????????????? | | ?????????????????????????????????????????????????? | | ?????????????????????????????????????????????????? | | ?????????????????????????????????????????????????? | | ?????????????????????????????????????????????????? | | ?????????????????????????????????????????????????? | | ?????????????????????????????????????????????????? | | ?????????????????????????????????????????????????? | | ?????????????????????????????????????????????????? | | ?????????????????????????????????????????????????? | | ?????????????????????????????????????????????????? | | ?????????????????????????????????????????????????? | | ?????????????????????????????????????????????????? | | ?????????????????????????????????????????????????? | | ?????????????????????????????????????????????????? | | ?????????????????????????????????????????????????? | | ?????????????????????????????????????????????????? | | ?????????????????????????????????????????????????? | +----------------------------------------------------+ Best States ------------- Heat Dissipation 25 Energy Generation 10 Energy Capacity 250 Matter Stores 300 Matter Capacity 300 Sight Range 16 Terrain Scan Density 10 Evasion (%) 44 Recoil Reduction 1 Item Schematics ----------------- None Robot Schematics ------------------ None Fabricated ------------ Nothing Alien Tech Used ----------------- None Achievements -------------- Tank Challenges ------------ None Game ------ Seed FrostSubdwellerBattery Manual? 0 Play Time 00:10:04 Cumulative 35.8 hours Start 2024.03.12 @ 18:20:12 End 2024.03.12 @ 18:30:05 Sessions 1 Manual Loads 0 Difficulty Rogue Special Mode None Game No. 39 Rogue 39 Adventurer 0 Explorer 0 Win Type - Total 0 Types 0/0/0/0/0/0/0/0/0 Lore% 22 Gallery% 27 Achievement% 25 Wizard Run 0 Options --------- Layout 1 ASCII 0 Keyboard 0 Movement Numpad Keybinds 0 Fullscreen 2 Font 24/X11 Map View 50x35 Zoom Use 0% Tactical HUD 1 Map Filters NONE Filters NONE Steam 0 RUN: 06a4c660-9ec4-42fe-acc6-e16f7d77a490